Workbook

Sheet Text2Column
A1: FROM: | B1: Mark Biegert
A2: SUBJECT: | B2: Text-to-Column Approach
A3: DATE: | B3: 2014-11-25
A5: Sample IP Address
A6: 10.0.0.1
A7: 10.255.255.254
A8: 172.16.0.1
A9: 172.16.255.254
A10: 192.168.0.1
A11: 192.168.255.254
A12: 172.24.4.226
A13: 172.24.4.227
A14: 172.24.4.228
A15: 172.24.4.229
A16: 172.24.4.230
A17: 172.24.4.231
A18: 172.24.4.232
A19: 172.24.4.233
A20: 172.24.4.234
A21: 172.24.4.235
A22: 172.24.4.236
A23: 172.24.4.237
A24: 172.24.4.238
A25: 192.168.253.1
A26: 192.168.253.2
A27: 192.168.253.3
A28: 192.168.253.4
A29: 192.168.253.5
A30: 192.168.253.6
A32: Split the Octets Apart Using Text-to-Columns
A34: First Octet | B34: Second Octet | C34: Third Octet | D34: Fourth Octet | E34: IP Number | F34: Back to Octet | G34: Check
A35: 10 | B35: 0 | C35: 0 | D35: 1 | E35: =SUM(A35:D35*(2^8)^{3,2,1,0}) -> 167772161 | F35: =TEXT(MOD(QUOTIENT(E35,2^24),2^8),"0")&"."&TEXT(MOD(QUOTIENT(E35,2^16),2^8),"0")&"."&TEXT(MOD(QUOTIENT(E35,2^8),2^8),"0")&"." & TEXT(MOD(E35,2^8),"0") -> 10.0.0.1 | G35: =F35=A6 -> TRUE
A36: 10 | B36: 255 | C36: 255 | D36: 254 | E36: =SUM(A36:D36*(2^8)^{3,2,1,0}) -> 184549374 | F36: =TEXT(MOD(QUOTIENT(E36,2^24),2^8),"0")&"."&TEXT(MOD(QUOTIENT(E36,2^16),2^8),"0")&"."&TEXT(MOD(QUOTIENT(E36,2^8),2^8),"0")&"." & TEXT(MOD(E36,2^8),"0") -> 10.255.255.254 | G36: TRUE
A37: 172 | B37: 16 | C37: 0 | D37: 1 | E37: =SUM(A37:D37*(2^8)^{3,2,1,0}) -> 2886729729 | F37: 172.16.0.1 | G37: TRUE
A38: 172 | B38: 16 | C38: 255 | D38: 254 | E38: =SUM(A38:D38*(2^8)^{3,2,1,0}) -> 2886795262 | F38: 172.16.255.254 | G38: TRUE
A39: 192 | B39: 168 | C39: 0 | D39: 1 | E39: =SUM(A39:D39*(2^8)^{3,2,1,0}) -> 3232235521 | F39: 192.168.0.1 | G39: TRUE
A40: 192 | B40: 168 | C40: 255 | D40: 254 | E40: =SUM(A40:D40*(2^8)^{3,2,1,0}) -> 3232301054 | F40: 192.168.255.254 | G40: TRUE
A41: 172 | B41: 24 | C41: 4 | D41: 226 | E41: =SUM(A41:D41*(2^8)^{3,2,1,0}) -> 2887255266 | F41: 172.24.4.226 | G41: TRUE
A42: 172 | B42: 24 | C42: 4 | D42: 227 | E42: =SUM(A42:D42*(2^8)^{3,2,1,0}) -> 2887255267 | F42: 172.24.4.227 | G42: TRUE
A43: 172 | B43: 24 | C43: 4 | D43: 228 | E43: =SUM(A43:D43*(2^8)^{3,2,1,0}) -> 2887255268 | F43: 172.24.4.228 | G43: TRUE
A44: 172 | B44: 24 | C44: 4 | D44: 229 | E44: =SUM(A44:D44*(2^8)^{3,2,1,0}) -> 2887255269 | F44: 172.24.4.229 | G44: TRUE
A45: 172 | B45: 24 | C45: 4 | D45: 230 | E45: =SUM(A45:D45*(2^8)^{3,2,1,0}) -> 2887255270 | F45: 172.24.4.230 | G45: TRUE
A46: 172 | B46: 24 | C46: 4 | D46: 231 | E46: =SUM(A46:D46*(2^8)^{3,2,1,0}) -> 2887255271 | F46: 172.24.4.231 | G46: TRUE
A47: 172 | B47: 24 | C47: 4 | D47: 232 | E47: =SUM(A47:D47*(2^8)^{3,2,1,0}) -> 2887255272 | F47: 172.24.4.232 | G47: TRUE
A48: 172 | B48: 24 | C48: 4 | D48: 233 | E48: =SUM(A48:D48*(2^8)^{3,2,1,0}) -> 2887255273 | F48: 172.24.4.233 | G48: TRUE
A49: 172 | B49: 24 | C49: 4 | D49: 234 | E49: =SUM(A49:D49*(2^8)^{3,2,1,0}) -> 2887255274 | F49: 172.24.4.234 | G49: TRUE
A50: 172 | B50: 24 | C50: 4 | D50: 235 | E50: =SUM(A50:D50*(2^8)^{3,2,1,0}) -> 2887255275 | F50: 172.24.4.235 | G50: TRUE
A51: 172 | B51: 24 | C51: 4 | D51: 236 | E51: =SUM(A51:D51*(2^8)^{3,2,1,0}) -> 2887255276 | F51: 172.24.4.236 | G51: TRUE
A52: 172 | B52: 24 | C52: 4 | D52: 237 | E52: =SUM(A52:D52*(2^8)^{3,2,1,0}) -> 2887255277 | F52: 172.24.4.237 | G52: TRUE
A53: 172 | B53: 24 | C53: 4 | D53: 238 | E53: =SUM(A53:D53*(2^8)^{3,2,1,0}) -> 2887255278 | F53: 172.24.4.238 | G53: TRUE
A54: 192 | B54: 168 | C54: 253 | D54: 1 | E54: =SUM(A54:D54*(2^8)^{3,2,1,0}) -> 3232300289 | F54: 192.168.253.1 | G54: TRUE
A55: 192 | B55: 168 | C55: 253 | D55: 2 | E55: =SUM(A55:D55*(2^8)^{3,2,1,0}) -> 3232300290 | F55: 192.168.253.2 | G55: TRUE
A56: 192 | B56: 168 | C56: 253 | D56: 3 | E56: =SUM(A56:D56*(2^8)^{3,2,1,0}) -> 3232300291 | F56: 192.168.253.3 | G56: TRUE
A57: 192 | B57: 168 | C57: 253 | D57: 4 | E57: =SUM(A57:D57*(2^8)^{3,2,1,0}) -> 3232300292 | F57: 192.168.253.4 | G57: TRUE
A58: 192 | B58: 168 | C58: 253 | D58: 5 | E58: =SUM(A58:D58*(2^8)^{3,2,1,0}) -> 3232300293 | F58: 192.168.253.5 | G58: TRUE
A59: 192 | B59: 168 | C59: 253 | D59: 6 | E59: =SUM(A59:D59*(2^8)^{3,2,1,0}) -> 3232300294 | F59: 192.168.253.6 | G59: TRUE

Sheet Functional
A1: FROM: | B1: Mark Biegert
A2: SUBJECT: | B2: No VBA Functional Solution
A3: DATE: | B3: 2014-11-25
A5: Sample IP Address
A6: Original Octet | B6: Binary Equivalent | C6: Back to Octet | D6: Check
A7: 10.0.0.1 | B7: =LEFT( A7,FIND(".",A7)-1)*2^24 + N("Extract the first octet and shift over 3 bytes") + MID( A7, FIND(CHAR(1),SUBSTITUTE(A7,".",CHAR(1),1))+1,FIND(CHAR(1),SUBSTITUTE(A7,".",CHAR(1),2))-FIND(CHAR(1),SUBSTITUTE(A7,".",CHAR(1),1))-1)*2^16 + N("Extract the 2nd octet and shift over 2 bytes") +MID( A7, FIND(CHAR(1),SUBSTITUTE(A7,".",CHAR(1),2))+1,FIND(CHAR(1),SUBSTITUTE(A7,".",CHAR(1),3))-FIND(CHAR(1),SUBSTITUTE(A7,".",CHAR(1),2))-1)*2^8+ N("Extract the 3rd octet and shift over 1 bytes") +RIGHT( A7,LEN(A7)-FIND(CHAR(1),SUBSTITUTE(A7,".",CHAR(1),3)))+N("Extract the 4th octet") -> 167772161 | C7: =TEXT(MOD(QUOTIENT(B7,2^24),2^8),"0")&"."&TEXT(MOD(QUOTIENT(B7,2^16),2^8),"0")&"."&TEXT(MOD(QUOTIENT(B7,2^8),2^8),"0")&"." & TEXT(MOD(B7,2^8),"0") -> 10.0.0.1 | D7: =C7=A7 -> TRUE
A8: 10.255.255.254 | B8: =LEFT( A8,FIND(".",A8)-1)*2^24 + N("Extract the first octet and shift over 3 bytes") + MID( A8, FIND(CHAR(1),SUBSTITUTE(A8,".",CHAR(1),1))+1,FIND(CHAR(1),SUBSTITUTE(A8,".",CHAR(1),2))-FIND(CHAR(1),SUBSTITUTE(A8,".",CHAR(1),1))-1)*2^16 + N("Extract the 2nd octet and shift over 2 bytes") +MID( A8, FIND(CHAR(1),SUBSTITUTE(A8,".",CHAR(1),2))+1,FIND(CHAR(1),SUBSTITUTE(A8,".",CHAR(1),3))-FIND(CHAR(1),SUBSTITUTE(A8,".",CHAR(1),2))-1)*2^8+ N("Extract the 3rd octet and shift over 1 bytes") +RIGHT( A8,LEN(A8)-FIND(CHAR(1),SUBSTITUTE(A8,".",CHAR(1),3)))+N("Extract the 4th octet") -> 184549374 | C8: =TEXT(MOD(QUOTIENT(B8,2^24),2^8),"0")&"."&TEXT(MOD(QUOTIENT(B8,2^16),2^8),"0")&"."&TEXT(MOD(QUOTIENT(B8,2^8),2^8),"0")&"." & TEXT(MOD(B8,2^8),"0") -> 10.255.255.254 | D8: =C8=A8 -> TRUE
A9: 172.16.0.1 | B9: 2886729729 | C9: 172.16.0.1 | D9: TRUE
A10: 172.16.255.254 | B10: 2886795262 | C10: 172.16.255.254 | D10: TRUE
A11: 192.168.0.1 | B11: 3232235521 | C11: 192.168.0.1 | D11: TRUE
A12: 192.168.255.254 | B12: 3232301054 | C12: 192.168.255.254 | D12: TRUE
A13: 172.24.4.226 | B13: 2887255266 | C13: 172.24.4.226 | D13: TRUE
A14: 172.24.4.227 | B14: 2887255267 | C14: 172.24.4.227 | D14: TRUE
A15: 172.24.4.228 | B15: 2887255268 | C15: 172.24.4.228 | D15: TRUE
A16: 172.24.4.229 | B16: 2887255269 | C16: 172.24.4.229 | D16: TRUE
A17: 172.24.4.230 | B17: 2887255270 | C17: 172.24.4.230 | D17: TRUE
A18: 172.24.4.231 | B18: 2887255271 | C18: 172.24.4.231 | D18: TRUE
A19: 172.24.4.232 | B19: 2887255272 | C19: 172.24.4.232 | D19: TRUE
A20: 172.24.4.233 | B20: 2887255273 | C20: 172.24.4.233 | D20: TRUE
A21: 172.24.4.234 | B21: 2887255274 | C21: 172.24.4.234 | D21: TRUE
A22: 172.24.4.235 | B22: 2887255275 | C22: 172.24.4.235 | D22: TRUE
A23: 172.24.4.236 | B23: 2887255276 | C23: 172.24.4.236 | D23: TRUE
A24: 172.24.4.237 | B24: 2887255277 | C24: 172.24.4.237 | D24: TRUE
A25: 172.24.4.238 | B25: 2887255278 | C25: 172.24.4.238 | D25: TRUE
A26: 192.168.253.1 | B26: 3232300289 | C26: 192.168.253.1 | D26: TRUE
A27: 192.168.253.2 | B27: 3232300290 | C27: 192.168.253.2 | D27: TRUE
A28: 192.168.253.3 | B28: 3232300291 | C28: 192.168.253.3 | D28: TRUE
A29: 192.168.253.4 | B29: 3232300292 | C29: 192.168.253.4 | D29: TRUE
A30: 192.168.253.5 | B30: 3232300293 | C30: 192.168.253.5 | D30: TRUE
A31: 192.168.253.6 | B31: 3232300294 | C31: 192.168.253.6 | D31: TRUE

Sheet VBA1
A1: FROM: | B1: Mark Biegert
A2: SUBJECT: | B2: Solution Using Char-by-Char Parsing
A3: DATE: | B3: 2014-11-25
A5: Sample IP Address
A6: Original Octet | B6: Binary Equivalent | C6: Back to Octet | D6: Check
A7: 10.0.0.1 | B7: =[0]!IP2Dbl.IP2Dbl(A7) -> 167772161 | C7: =Dbl2IP(B7) -> 10.0.0.1 | D7: =C7=A7 -> TRUE
A8: 10.255.255.254 | B8: =[0]!IP2Dbl.IP2Dbl(A8) -> 184549374 | C8: =Dbl2IP(B8) -> 10.255.255.254 | D8: =C8=A8 -> TRUE
A9: 172.16.0.1 | B9: =[0]!IP2Dbl.IP2Dbl(A9) -> 2886729729 | C9: 172.16.0.1 | D9: TRUE
A10: 172.16.255.254 | B10: =[0]!IP2Dbl.IP2Dbl(A10) -> 2886795262 | C10: 172.16.255.254 | D10: TRUE
A11: 192.168.0.1 | B11: =[0]!IP2Dbl.IP2Dbl(A11) -> 3232235521 | C11: 192.168.0.1 | D11: TRUE
A12: 192.168.255.254 | B12: =[0]!IP2Dbl.IP2Dbl(A12) -> 3232301054 | C12: 192.168.255.254 | D12: TRUE
A13: 172.24.4.226 | B13: =[0]!IP2Dbl.IP2Dbl(A13) -> 2887255266 | C13: 172.24.4.226 | D13: TRUE
A14: 172.24.4.227 | B14: =[0]!IP2Dbl.IP2Dbl(A14) -> 2887255267 | C14: 172.24.4.227 | D14: TRUE
A15: 172.24.4.228 | B15: =[0]!IP2Dbl.IP2Dbl(A15) -> 2887255268 | C15: 172.24.4.228 | D15: TRUE
A16: 172.24.4.229 | B16: =[0]!IP2Dbl.IP2Dbl(A16) -> 2887255269 | C16: 172.24.4.229 | D16: TRUE
A17: 172.24.4.230 | B17: =[0]!IP2Dbl.IP2Dbl(A17) -> 2887255270 | C17: 172.24.4.230 | D17: TRUE
A18: 172.24.4.231 | B18: =[0]!IP2Dbl.IP2Dbl(A18) -> 2887255271 | C18: 172.24.4.231 | D18: TRUE
A19: 172.24.4.232 | B19: =[0]!IP2Dbl.IP2Dbl(A19) -> 2887255272 | C19: 172.24.4.232 | D19: TRUE
A20: 172.24.4.233 | B20: =[0]!IP2Dbl.IP2Dbl(A20) -> 2887255273 | C20: 172.24.4.233 | D20: TRUE
A21: 172.24.4.234 | B21: =[0]!IP2Dbl.IP2Dbl(A21) -> 2887255274 | C21: 172.24.4.234 | D21: TRUE
A22: 172.24.4.235 | B22: =[0]!IP2Dbl.IP2Dbl(A22) -> 2887255275 | C22: 172.24.4.235 | D22: TRUE
A23: 172.24.4.236 | B23: =[0]!IP2Dbl.IP2Dbl(A23) -> 2887255276 | C23: 172.24.4.236 | D23: TRUE
A24: 172.24.4.237 | B24: =[0]!IP2Dbl.IP2Dbl(A24) -> 2887255277 | C24: 172.24.4.237 | D24: TRUE
A25: 172.24.4.238 | B25: =[0]!IP2Dbl.IP2Dbl(A25) -> 2887255278 | C25: 172.24.4.238 | D25: TRUE
A26: 192.168.253.1 | B26: =[0]!IP2Dbl.IP2Dbl(A26) -> 3232300289 | C26: 192.168.253.1 | D26: TRUE
A27: 192.168.253.2 | B27: =[0]!IP2Dbl.IP2Dbl(A27) -> 3232300290 | C27: 192.168.253.2 | D27: TRUE
A28: 192.168.253.3 | B28: =[0]!IP2Dbl.IP2Dbl(A28) -> 3232300291 | C28: 192.168.253.3 | D28: TRUE
A29: 192.168.253.4 | B29: =[0]!IP2Dbl.IP2Dbl(A29) -> 3232300292 | C29: 192.168.253.4 | D29: TRUE
A30: 192.168.253.5 | B30: =[0]!IP2Dbl.IP2Dbl(A30) -> 3232300293 | C30: 192.168.253.5 | D30: TRUE
A31: 192.168.253.6 | B31: =[0]!IP2Dbl.IP2Dbl(A31) -> 3232300294 | C31: 192.168.253.6 | D31: TRUE

Sheet VBA2
A1: FROM: | B1: Mark Biegert
A2: SUBJECT: | B2: VBA Method Using String Functions to Parse
A3: DATE: | B3: 2014-11-25
A5: Sample IP Address
A6: Original Octet | B6: Binary Equivalent | C6: Back to Octet | D6: Check
A7: 10.0.0.1 | B7: =[0]!IP2Dbl2.IP2Dbl(A7) -> 167772161 | C7: =Dbl2IP(B7) -> 10.0.0.1 | D7: =A7=C7 -> TRUE
A8: 10.255.255.254 | B8: =[0]!IP2Dbl2.IP2Dbl(A8) -> 184549374 | C8: =Dbl2IP(B8) -> 10.255.255.254 | D8: =A8=C8 -> TRUE
A9: 172.16.0.1 | B9: =[0]!IP2Dbl2.IP2Dbl(A9) -> 2886729729 | C9: 172.16.0.1 | D9: TRUE
A10: 172.16.255.254 | B10: =[0]!IP2Dbl2.IP2Dbl(A10) -> 2886795262 | C10: =Dbl2IP(B10) -> 172.16.255.254 | D10: TRUE
A11: 192.168.0.1 | B11: =[0]!IP2Dbl2.IP2Dbl(A11) -> 3232235521 | C11: 192.168.0.1 | D11: TRUE
A12: 192.168.255.254 | B12: =[0]!IP2Dbl2.IP2Dbl(A12) -> 3232301054 | C12: 192.168.255.254 | D12: TRUE
A13: 172.24.4.226 | B13: =[0]!IP2Dbl2.IP2Dbl(A13) -> 2887255266 | C13: 172.24.4.226 | D13: TRUE
A14: 172.24.4.227 | B14: =[0]!IP2Dbl2.IP2Dbl(A14) -> 2887255267 | C14: 172.24.4.227 | D14: TRUE
A15: 172.24.4.228 | B15: =[0]!IP2Dbl2.IP2Dbl(A15) -> 2887255268 | C15: 172.24.4.228 | D15: TRUE
A16: 172.24.4.229 | B16: =[0]!IP2Dbl2.IP2Dbl(A16) -> 2887255269 | C16: 172.24.4.229 | D16: TRUE
A17: 172.24.4.230 | B17: =[0]!IP2Dbl2.IP2Dbl(A17) -> 2887255270 | C17: 172.24.4.230 | D17: TRUE
A18: 172.24.4.231 | B18: =[0]!IP2Dbl2.IP2Dbl(A18) -> 2887255271 | C18: 172.24.4.231 | D18: TRUE
A19: 172.24.4.232 | B19: =[0]!IP2Dbl2.IP2Dbl(A19) -> 2887255272 | C19: 172.24.4.232 | D19: TRUE
A20: 172.24.4.233 | B20: =[0]!IP2Dbl2.IP2Dbl(A20) -> 2887255273 | C20: 172.24.4.233 | D20: TRUE
A21: 172.24.4.234 | B21: =[0]!IP2Dbl2.IP2Dbl(A21) -> 2887255274 | C21: 172.24.4.234 | D21: TRUE
A22: 172.24.4.235 | B22: =[0]!IP2Dbl2.IP2Dbl(A22) -> 2887255275 | C22: 172.24.4.235 | D22: TRUE
A23: 172.24.4.236 | B23: =[0]!IP2Dbl2.IP2Dbl(A23) -> 2887255276 | C23: 172.24.4.236 | D23: TRUE
A24: 172.24.4.237 | B24: =[0]!IP2Dbl2.IP2Dbl(A24) -> 2887255277 | C24: 172.24.4.237 | D24: TRUE
A25: 172.24.4.238 | B25: =[0]!IP2Dbl2.IP2Dbl(A25) -> 2887255278 | C25: 172.24.4.238 | D25: TRUE
A26: 192.168.253.1 | B26: =[0]!IP2Dbl2.IP2Dbl(A26) -> 3232300289 | C26: 192.168.253.1 | D26: TRUE
A27: 192.168.253.2 | B27: =[0]!IP2Dbl2.IP2Dbl(A27) -> 3232300290 | C27: 192.168.253.2 | D27: TRUE
A28: 192.168.253.3 | B28: =[0]!IP2Dbl2.IP2Dbl(A28) -> 3232300291 | C28: 192.168.253.3 | D28: TRUE
A29: 192.168.253.4 | B29: =[0]!IP2Dbl2.IP2Dbl(A29) -> 3232300292 | C29: 192.168.253.4 | D29: TRUE
A30: 192.168.253.5 | B30: =[0]!IP2Dbl2.IP2Dbl(A30) -> 3232300293 | C30: 192.168.253.5 | D30: TRUE
A31: 192.168.253.6 | B31: =[0]!IP2Dbl2.IP2Dbl(A31) -> 3232300294 | C31: 192.168.253.6 | D31: TRUE
